bitfinex/quotes_ETHUSD_20241120
["timestamp","ask_amount","ask_price","bid_price","bid_amount"]
[1732112288013,0.02371098,3142.8,3142.5,2.86393]
[1732112288220,0.02371098,3143.0,3142.5,2.8639]
[1732112288543,4.43288098,3143.2,3142.5,2.8639]
[1732112288698,3.0,3143.5,3143.1,2.86333]
[1732112288899,3.84493423,3143.9,3143.3,2.86318]
[1732112289100,3.84493423,3143.9,3142.8,2.86364]
[1732112289101,6.20448098,3143.9,3142.8,2.86364]
[1732112289342,6.20448098,3143.9,3143.2,2.86324]
[1732112289558,3.0,3143.7,3143.2,2.86324]
[1732112289756,6.18106,3143.7,3143.0,5.72689]
[1732112289897,0.7432181,3143.8,3143.1,1.1601]
[1732112290229,3.17992,3144.8,3144.1,2.86245]
[1732112290429,3.17992,3144.8,3144.2,2.86232]
[1732112290635,3.17992,3144.8,3144.1,2.86245]
[1732112290636,0.34170298,3144.7,3144.1,2.86245]
[1732112290819,3.17992,3144.8,3144.0,1.1601]
[1732112290820,1.2388,3145.1,3144.5,2.86213]
[1732112291142,1.2388,3145.5,3145.0,2.86166]
[1732112291342,0.37277752,3145.4,3145.0,2.86162]
[1732112291544,0.37277752,3145.4,3144.4,2.86217]
[1732112291545,0.37277752,3145.4,3144.6,1.1838]
[1732112291853,1.2532,3146.3,3145.8,2.86094]
[1732112292185,1.270737,3146.8,3146.2,2.86053]
[1732112292186,3.1779,3146.8,3146.2,2.86053]
[1732112292443,3.17848,3146.2,3145.4,2.86123]
[1732112292645,3.17921,3145.5,3144.5,1.1795]
[1732112292865,0.02371098,3145.4,3144.6,0.01]
[1732112292996,4.44724,3146.0,3145.2,2.86141]
[1732112293199,0.444724,3145.9,3145.2,2.86146]
[1732112293411,0.444724,3145.9,3144.6,0.01]
[1732112293412,3.17885,3145.8,3145.0,2.86166]
[1732112293612,0.02371098,3145.7,3145.1,2.86157]
[1732112293846,0.3202531,3145.7,3144.8,0.01]
[1732112294156,3.17767,3147.0,3146.2,2.86055]
[1732112294441,0.02371098,3146.6,3145.8,2.86095]
[1732112294753,0.02371098,3147.0,3146.3,2.86044]
[1732112294953,3.17821,3146.5,3145.9,2.86086]
[1732112295255,3.20200098,3146.4,3145.7,2.86104]
[1732112295421,0.02371098,3146.3,3145.3,2.86135]
[1732112295621,3.17891,3145.8,3144.9,4.1291]
[1732112295874,0.02371098,3145.7,3144.9,4.12914]
[1732112296029,1.1598,3146.7,3145.4,2.86132]
[1732112296209,0.02371098,3146.6,3145.5,0.287132]
[1732112296404,3.0,3146.4,3146.0,2.86077]
[1732112296711,0.3,3146.4,3145.9,2.86086]
[1732112296906,0.02371098,3146.5,3145.4,5.72264]
[1732112297107,3.0,3146.4,3145.5,2.8612]
[1732112297314,3.0,3146.4,3145.4,2.86129]
[1732112297315,3.0,3146.2,3145.4,2.86129]
[1732112297508,3.0,3146.2,3145.6,2.86105]
[1732112297509,0.6202121,3146.1,3145.6,2.86105]
[1732112298153,0.02371098,3146.1,3145.9,2.86079]
[1732112298356,3.17742,3147.3,3146.0,2.86075]
[1732112298357,4.33777,3146.7,3146.0,2.86075]
[1732112298525,3.17763,3147.0,3146.3,2.86048]
[1732112298723,1.1956,3147.1,3145.6,0.03178543]
[1732112298724,1.21931098,3147.1,3146.4,2.8604]
[1732112299556,3.17763,3147.0,3146.2,2.86058]
[1732112299866,3.17763,3147.0,3146.2,2.86053]
[1732112300151,3.17763,3147.0,3146.3,2.86048]
[1732112300366,0.4396941,3146.9,3146.3,2.86048]
[1732112300943,0.4396941,3146.9,3146.4,2.86039]
[1732112301738,6.17734,3147.3,3146.7,2.86008]
[1732112301925,1.1736,3147.5,3146.9,2.85994]
[1732112302133,1.1736,3147.5,3146.5,1.1634]
[1732112302134,3.17685,3147.8,3147.1,2.85971]
[1732112302386,1.1736,3147.9,3146.6,2.9019444]
[1732112302727,3.17746,3147.2,3146.5,4.02369]
[1732112302883,0.02371098,3147.6,3146.6,2.86023]
[1732112303062,0.02371098,3147.5,3146.5,1.1634]
[1732112303263,3.17746,3147.2,3146.5,1.1634]
[1732112303479,3.17754,3147.1,3146.5,1.1634]
[1732112303786,3.02371098,3147.7,3146.5,1.1634]
[1732112304094,7.11044386,3147.8,3146.9,2.85989]
[1732112304095,3.0,3147.5,3146.9,2.85989]
[1732112304258,3.20100098,3147.4,3146.5,4.02371]
[1732112304462,6.4974301,3147.3,3146.5,1.1634]
[1732112304659,4.35034,3147.9,3146.7,0.01]
[1732112304878,3.17645,3148.2,3147.4,2.85949]
[1732112305084,3.1766,3148.1,3147.5,2.85933]
[1732112305305,1.1907,3148.3,3147.6,2.85925]
[1732112305306,3.17647,3148.2,3147.6,2.85925]
[1732112305565,3.17647,3148.2,3146.8,1.2012]
[1732112305566,3.17718,3147.5,3146.8,1.2012]
[1732112305761,0.02371098,3147.4,3146.8,1.2012]
[1732112306005,0.02371098,3147.4,3146.3,0.01]
[1732112306006,0.02371098,3147.4,3146.2,0.03177587]
[1732112306211,1.2233,3147.3,3146.8,2.86003]
[1732112306396,4.40003,3147.9,3146.5,0.03177994]
[1732112306715,3.17675,3147.9,3147.3,1.2012]
[1732112306868,0.4836747,3147.9,3147.3,2.85953]
[1732112307067,3.6604047,3147.9,3147.1,2.85973]
[1732112307270,0.4836747,3147.9,3147.4,2.85942]
[1732112307482,0.4836747,3147.9,3147.3,2.85952]
[1732112307727,3.17656,3148.1,3147.5,2.85941]
[1732112308016,3.17649,3148.2,3147.5,2.85941]
[1732112308168,3.17649,3148.2,3147.1,0.01]
[1732112308169,3.17649,3148.2,3147.6,2.85931]
[1732112308369,3.17663,3148.0,3147.1,0.04176822]
[1732112308616,0.317649,3148.1,3147.6,2.85925]
[1732112308795,1.2095,3148.6,3147.9,2.85898]
[1732112309116,3.17537,3149.3,3148.6,2.85832]
[1732112309286,3.17537,3149.3,3148.7,2.85823]
[1732112309617,0.317511,3149.4,3149.1,2.8579]
[1732112309843,0.02371098,3149.7,3148.4,1.1963]
[1732112310121,0.02371098,3149.7,3148.6,2.85835]
[1732112310122,3.1754,3149.3,3148.6,2.85835]
[1732112310282,3.1754,3149.3,3148.4,1.1963]
[1732112310283,0.31754,3149.3,3148.4,1.1963]
[1732112310485,3.1754,3149.2,3148.4,1.1963]
[1732112310680,3.17551,3149.1,3148.4,1.1963]
[1732112310881,0.02371098,3149.7,3147.9,2.859]
[1732112310882,3.17591,3148.7,3147.9,4.05528]
[1732112311112,3.17591,3148.7,3148.0,2.85889]
[1732112311311,3.18,3149.7,3148.0,3.02]
[1732112311495,3.18,3149.7,3148.4,1.1963]
[1732112311496,3.17519,3149.5,3148.4,1.1963]
[1732112311834,3.810464,3149.7,3148.5,0.03175284]
[1732112312126,3.17493,3149.7,3148.9,2.85812]
[1732112312298,3.17472,3149.9,3149.2,2.8578]
[1732112312482,3.17472,3149.9,3149.0,2.88976284]
[1732112312682,3.17472,3149.9,3148.7,1.1963]
[1732112312683,0.02371098,3149.8,3148.8,2.85817]
[1732112312925,3.17521,3149.4,3148.7,1.1963]
[1732112313124,3.17521,3149.4,3148.7,4.05454]
[1732112313326,3.17503,3149.6,3148.7,4.08631285]
[1732112313545,3.1752,3149.5,3148.9,2.8581]
[1732112313696,3.17502,3149.6,3148.9,2.8581]
[1732112313899,3.17523,3149.4,3148.7,1.601754]
[1732112314097,3.17502,3149.6,3148.7,4.05456]
[1732112314296,3.17467,3150.0,3149.3,2.85771]
[1732112314548,3.17467,3150.0,3149.4,2.85768]
[1732112314709,0.1448371,3150.3,3150.0,2.85707]
[1732112315245,0.1448371,3150.3,3150.2,4.05326]
[1732112315452,0.1448371,3150.3,3150.2,1.1963]
[1732112316434,0.1448371,3150.3,3149.4,1.1667]
[1732112316762,3.1747,3149.9,3149.4,1.1667]
[1732112317292,3.17491,3149.7,3149.4,1.1667]
[1732112317448,1.26951098,3149.8,3148.5,1.1667]
[1732112317743,3.17536,3149.3,3148.5,1.1667]
[1732112317908,7.11044386,3150.2,3148.6,2.89016615]
[1732112318106,3.17559,3149.1,3148.6,0.03175615]
[1732112318302,3.17589,3148.8,3148.5,1.19845445]
[1732112318521,3.17589,3148.8,3148.5,1.1667]
[1732112318732,3.17594,3148.7,3147.9,2.85904]
[1732112318948,3.17594,3148.7,3148.0,4.02564]
[1732112319155,3.17593,3148.7,3148.0,4.714068]
[1732112319648,3.17593,3148.7,3148.0,1.855168]
[1732112319853,3.1765,3148.2,3148.0,1.1667]
[1732112320057,3.1765,3148.2,3147.4,0.0317645]
[1732112320220,3.17575,3148.9,3147.4,0.0317645]
[1732112320221,3.17611,3148.5,3147.4,0.0317645]
[1732112320409,3.1769,3147.8,3147.3,0.03176507]
[1732112320720,3.1766,3148.1,3147.2,2.85961]
[1732112320910,3.1768,3147.9,3147.3,2.89134681]
[1732112321142,0.02371098,3148.0,3147.1,0.285977]
[1732112321391,3.17685,3147.8,3147.1,0.03176703]
[1732112321596,3.17663,3148.0,3147.1,2.85975]
[1732112321740,6.17604,3148.6,3147.2,0.03176962]
[1732112322111,3.17593,3148.7,3148.1,2.8588]
[1732112322313,3.17593,3148.7,3147.9,2.89074036]
[1732112322575,3.17593,3148.7,3148.1,2.85885]
[1732112322790,0.3494132,3148.9,3147.9,2.89080036]
[1732112322970,3.17623,3148.4,3147.8,1.777]
[1732112323173,3.17603,3148.6,3147.8,1.777]
[1732112323337,1.2148,3148.9,3148.3,3.40865]
[1732112323537,3.17588,3148.8,3148.3,0.55]
[1732112323738,1.2148,3148.9,3148.4,0.03175806]
[1732112323975,1.2148,3148.9,3148.1,0.55]
[1732112324245,1.2148,3148.9,3148.3,2.85868]
[1732112324556,1.2148,3148.9,3148.2,0.3768224]
[1732112324557,1.2148,3148.9,3148.7,0.55]
[1732112324752,1.2148,3148.9,3148.8,2.85823]
[1732112324966,1.2148,3148.9,3148.6,2.85834]
[1732112324967,1.2148,3148.9,3148.5,0.55]
[1732112325168,4.39053,3148.9,3148.2,0.55]
[1732112325370,3.17599,3148.7,3147.9,2.85903]
[1732112325686,3.17599,3148.7,3148.1,2.85878]
[1732112325986,1.2148,3148.9,3148.2,2.85877]
[1732112326192,1.2148,3148.9,3148.3,2.85867]
[1732112326398,1.2148,3148.9,3148.2,3.144638]
[1732112326399,3.17587,3148.8,3148.2,3.144638]
[1732112326540,3.17587,3148.8,3148.2,2.85876]
[1732112326740,1.2148,3148.9,3148.3,0.55]
[1732112326989,1.2148,3148.9,3148.4,0.03175774]
[1732112327288,1.2148,3148.9,3148.7,2.85825]
[1732112327582,1.2148,3148.9,3148.8,3.40823]
[1732112327984,1.2148,3148.9,3148.8,4.034886]
[1732112328446,1.2148,3148.9,3148.8,1.176656]
[1732112329159,3.17536,3149.3,3148.9,0.55]
[1732112329571,3.17511,3149.5,3148.9,0.55]
[1732112329980,6.34993,3149.7,3149.0,2.85805]
[1732112330288,6.34993,3149.7,3148.9,0.9534876]
[1732112330289,3.17494,3149.7,3149.1,0.55]
[1732112330458,3.17519,3149.5,3148.9,0.55]
[1732112331400,3.17503,3149.6,3148.9,0.55]
[1732112331695,1.1984,3149.9,3149.5,2.85754]
[1732112331903,3.17446,3150.2,3149.6,0.55]
[1732112332040,3.17446,3150.2,3149.6,3.4075]
[1732112332499,0.1448371,3150.3,3149.8,0.55]
[1732112332941,0.1448371,3150.3,3149.8,3.40724]
[1732112333710,0.1448371,3150.3,3150.0,0.55]
[1732112333953,0.1448371,3150.3,3150.1,2.88871197]
[1732112334105,0.1448371,3150.3,3150.0,3.40708]
[1732112334310,0.1448371,3150.3,3150.0,0.55]
[1732112334546,0.1448371,3150.3,3149.8,2.85731]
[1732112334547,3.3191471,3150.3,3149.8,2.85731]
[1732112334853,0.1448371,3150.3,3149.9,0.55]
[1732112335162,0.1448371,3150.3,3150.2,3.40696]
[1732112335307,0.1448371,3150.3,3150.2,0.55]
[1732112335506,0.1448371,3150.3,3150.1,0.55]
[1732112335745,0.1448371,3150.3,3149.5,0.58173978]
[1732112335950,0.1448371,3150.3,3150.1,2.85698]
[1732112336130,0.1448371,3150.3,3149.9,2.85716]
[1732112336451,0.1448371,3150.3,3149.9,0.55]
[1732112336622,3.3191371,3150.3,3149.9,0.55]
[1732112336822,3.3191371,3150.3,3149.6,2.85744]
[1732112336823,3.17443,3150.2,3149.6,2.85744]
[1732112337150,0.1448371,3150.3,3149.8,2.85725]
[1732112337452,3.3191971,3150.3,3149.9,0.55]
[1732112337755,0.1448371,3150.3,3150.2,2.85696]
[1732112337927,0.1448371,3150.3,3150.2,3.428362]
[1732112338251,0.1448371,3150.3,3149.8,2.88903943]
[1732112338567,3.17463,3150.0,3149.4,1.2571]
[1732112338713,0.1448371,3150.3,3149.4,1.70033181]
[1732112339055,3.17442,3150.2,3149.6,2.85744]
[1732112339261,0.1448371,3150.3,3149.6,0.03174333]
[1732112339438,0.1448371,3150.3,3150.0,2.85713]
[1732112339749,0.1448371,3150.3,3149.8,2.85725]
[1732112339976,0.1448371,3150.3,3150.2,2.85696]
[1732112340112,0.1448371,3150.3,3150.2,3.692656]
[1732112340468,0.1448371,3150.3,3149.8,2.85728]
[1732112340672,0.1448371,3150.3,3149.8,2.85726]
[1732112340963,0.1448371,3150.3,3149.4,4.1147]
[1732112341146,3.17492,3149.7,3149.4,1.2571]
[1732112341362,3.1747,3149.9,3149.0,1.1776]
[1732112341659,3.17504,3149.6,3149.0,1.1776]
[1732112341958,3.17484,3149.8,3149.0,1.1776]
[1732112342275,0.1448371,3150.3,3150.2,2.85696]
[1732112342742,0.1448371,3150.3,3149.8,2.85726]
[1732112343060,0.1448371,3150.3,3150.0,2.85708]
[1732112343539,0.1448371,3150.3,3150.1,2.88873145]
[1732112343772,0.1448371,3150.3,3150.2,4.06786]
[1732112344145,0.1448371,3150.3,3150.2,4.09959755]
[1732112344395,0.1448371,3150.3,3149.8,4.02914]
[1732112344556,0.47673081,3150.3,3149.4,1.1719]
[1732112344756,0.47673081,3150.3,3149.0,3.0]
[1732112344757,3.17527,3149.4,3149.0,1.1719]
[1732112344953,3.17508,3149.6,3149.0,2.85804]
[1732112345289,3.17512,3149.5,3149.0,2.88973193]
[1732112345492,3.17512,3149.5,3149.0,2.88976193]
[1732112345660,3.17512,3149.5,3148.9,2.85813]
[1732112345873,3.17496,3149.7,3149.0,2.85801]
[1732112346185,6.34994,3149.7,3148.8,3.29294214]
[1732112346414,3.17501,3149.6,3149.0,2.85798]
[1732112346711,3.17547,3149.2,3148.5,2.85842]
[1732112347011,3.17571,3148.9,3147.9,1.2535]
[1732112347204,3.17591,3148.7,3147.9,1.2535]
[1732112347348,3.17591,3148.7,3148.1,2.85886]
[1732112347700,3.17554,3149.1,3148.1,0.73206056]
[1732112347848,3.0,3150.0,3149.0,2.85803]
[1732112347849,4.39955,3149.9,3149.0,2.85803]
[1732112348045,3.17421,3150.4,3149.6,4.11663]
[1732112348291,3.1741,3150.5,3149.7,0.03174736]
[1732112348587,3.19811098,3150.2,3149.1,1.2592]
[1732112348800,3.19811098,3150.2,3149.1,2.85795]
[1732112348801,4.93603134,3150.1,3149.1,2.85795]
[1732112348988,0.49597423,3150.0,3148.9,2.85807]
[1732112349197,3.19841098,3149.9,3148.4,0.03174798]
[1732112349497,3.19841098,3149.9,3148.3,1.2592]
[1732112349498,3.17577,3148.9,3148.3,1.2592]
[1732112349806,3.17599,3148.7,3148.0,2.85895]
[1732112350103,1.1799,3149.1,3148.1,0.03176005]
[1732112350392,1.1799,3149.1,3148.0,1.252]
[1732112350693,0.435535,3149.0,3147.6,2.85925]
[1732112350892,3.17661,3148.1,3147.4,1.30976519]
[1732112351188,3.17655,3148.1,3147.4,1.30976519]
[1732112351391,3.1767,3148.0,3147.4,4.13744]
[1732112351566,3.17679,3147.9,3147.4,1.278]
[1732112351903,3.17696,3147.7,3147.1,2.85975]
[1732112352109,3.17696,3147.7,3147.1,0.31774379]
[1732112352265,3.17715,3147.5,3147.1,0.285975]
[1732112352590,3.17696,3147.7,3147.0,1.1543]
[1732112352776,3.71123134,3148.3,3147.0,1.1543]
[1732112352777,3.17719,3147.5,3147.0,1.1543]
[1732112353094,1.1734,3147.8,3147.0,1.1543]
[1732112353308,3.1761,3148.6,3147.7,2.85922]
[1732112353589,1.1734,3148.7,3147.2,2.85968]
[1732112353590,3.17673,3147.9,3147.2,2.85968]
[1732112353790,3.17682,3147.8,3147.2,2.85968]
[1732112353952,3.17668,3148.0,3147.3,2.85957]
[1732112354154,3.17642,3148.2,3147.6,2.85926]
[1732112354657,3.17609,3148.6,3147.8,1.2615]
[1732112354935,7.28963255,3149.5,3148.1,2.85886]
[1732112354936,3.17564,3149.0,3148.1,2.85886]
[1732112355104,3.17608,3148.6,3147.9,2.89080204]
[1732112355302,3.17608,3148.6,3147.9,0.58176204]
[1732112355456,3.17623,3148.4,3147.9,0.58176204]
[1732112355656,3.17623,3148.4,3147.8,1.2615]
[1732112355903,1.1679,3148.6,3147.4,2.85946]
[1732112356050,3.17673,3147.9,3147.2,4.07427109]
[1732112356256,3.17621,3148.4,3147.6,2.85925]
[1732112356479,1.19161098,3148.6,3147.4,2.85947]
[1732112356802,3.17738,3147.3,3147.0,0.03176682]
[1732112356999,3.17743,3147.2,3146.9,1.1887]
[1732112357170,3.17769,3147.0,3146.4,1.1887]
[1732112357373,3.17743,3147.2,3146.5,2.86026]
[1732112357680,3.17743,3147.2,3146.4,1.1887]
[1732112357681,3.17789,3146.8,3146.4,1.1887]
[1732112357883,3.17774,3146.9,3146.4,1.1887]
[1732112358058,3.17723,3147.4,3146.4,4.0491]
[1732112358254,3.17744,3147.2,3146.4,4.0491]
[1732112358552,3.17822,3146.5,3146.0,1.1998]
[1732112358787,3.17802,3146.7,3146.0,4.0605]
[1732112359263,3.17835,3146.3,3146.0,1.1998]
[1732112359460,3.17813,3146.5,3145.8,2.86094]
[1732112359765,3.17815,3146.5,3145.7,0.03178265]
[1732112360098,4.44349,3147.1,3145.7,2.89280265]
[1732112360257,1.2659,3147.1,3145.7,0.46965362]
[1732112360458,3.17804,3146.6,3145.7,0.03178265]
[1732112360861,1.2659,3147.1,3146.5,2.86028]
[1732112361061,3.17774,3146.9,3146.5,1.1998]
[1732112361289,3.1779,3146.8,3146.5,1.1998]
[1732112361489,1.5659,3147.6,3146.2,0.55]
[1732112361704,3.1778,3146.9,3146.3,2.89221978]
[1732112361904,3.1778,3146.9,3146.4,0.55]
[1732112362114,1.2659,3147.6,3146.4,0.55]
[1732112362406,3.17824,3146.4,3146.0,1.1998]
[1732112362606,3.17859,3146.1,3145.4,2.8613]
[1732112362769,3.1786,3146.1,3145.4,2.8613]
[1732112362969,1.197,3146.2,3145.6,2.86108]
[1732112363183,3.17864,3146.0,3145.4,2.8613]
[1732112363499,3.17864,3146.0,3145.3,1.1998]
[1732112363808,3.17891,3145.8,3145.1,2.89332833]
[1732112363984,3.17914,3145.6,3144.9,4.04506]
[1732112364318,3.17914,3145.6,3144.9,1.1833]
[1732112364460,3.17914,3145.6,3145.0,2.86168]
[1732112364657,3.17907,3145.6,3144.9,4.04502]
[1732112365170,3.179,3145.7,3145.0,2.8616]
[1732112365390,3.17912,3145.6,3145.0,2.8616]
[1732112365572,3.17912,3145.6,3144.3,3.0]
[1732112365573,0.02371098,3145.5,3144.3,1.1733]
[1732112365777,0.02371098,3145.7,3144.6,2.86197]
[1732112366011,3.0,3145.6,3144.6,2.86204]
[1732112366214,0.3023711,3145.5,3144.3,1.1733]
[1732112366414,1.2026,3146.0,3145.0,2.86162]
[1732112366563,1.2026,3146.0,3145.2,2.86147]
[1732112367379,1.2026,3146.0,3145.1,2.86158]
[1732112367776,4.2026,3146.0,3145.1,2.86158]
[1732112367982,5.2430851,3146.0,3145.1,2.86158]
[1732112368183,2.2430851,3146.0,3144.8,0.03179177]
[1732112368510,1.2026,3146.0,3145.2,2.86143]
[1732112368809,1.2026,3146.0,3145.1,2.86155]
[1732112369120,1.2026,3146.0,3145.3,2.86141]
[1732112369411,1.2026,3146.0,3145.5,2.86122]
[1732112369618,1.2736,3146.4,3145.8,2.86087]
[1732112369908,1.2736,3147.2,3146.0,2.86077]
[1732112370075,0.02371098,3147.1,3146.2,2.86053]
[1732112370269,0.4474761,3147.0,3146.2,2.86053]
[1732112370475,1.2736,3147.2,3146.7,2.8601]
[1732112370978,1.2736,3147.2,3146.5,2.86031]
[1732112371179,1.2736,3147.2,3146.2,0.03177722]
[1732112371180,3.17766,3147.0,3146.1,2.86062]
[1732112371387,0.34384808,3146.9,3146.1,2.86062]
[1732112371582,0.34384808,3146.9,3146.0,1.2062]
[1732112371583,3.52162808,3146.9,3146.0,1.2062]
[1732112371815,0.34384808,3146.9,3146.0,3.41069]
[1732112372315,0.35215481,3146.8,3145.9,5.72166]
[1732112372528,1.2736,3147.2,3146.4,2.8604]
[1732112372811,1.2736,3147.2,3146.0,0.03178414]
[1732112372812,6.17754,3147.1,3146.0,2.86074]
[1732112373111,0.02371098,3147.0,3146.2,2.86059]
[1732112373295,0.6628611,3146.9,3146.2,2.86059]
[1732112373720,0.6628611,3146.9,3145.8,0.03178102]
[1732112373721,4.2736,3147.2,3146.4,2.86035]
[1732112373885,4.2736,3147.2,3146.6,2.8602]
[1732112374209,4.2736,3147.2,3146.4,2.86035]
[1732112374210,0.83780725,3147.1,3146.5,2.86032]
[1732112374514,1.2736,3147.2,3146.4,1.2466]
[1732112374683,0.02371098,3147.1,3146.4,2.86035]
[1732112375006,4.896124,3147.2,3146.4,2.86035]
[1732112375410,1.718684,3147.2,3146.4,2.86035]
[1732112375714,4.896164,3147.2,3146.2,2.86056]
[1732112375920,3.17775,3146.9,3146.1,2.86068]
[1732112376280,0.02371098,3146.8,3146.1,2.86068]
[1732112376611,3.17775,3146.9,3146.2,2.86058]
[1732112376910,3.37316938,3147.1,3146.2,2.86058]
[1732112377072,3.17763,3147.0,3146.2,2.86058]
[1732112377407,1.718684,3147.2,3146.5,2.86025]
[1732112377633,4.45106,3147.2,3146.3,2.86043]
[1732112377815,3.17755,3147.1,3146.4,2.86035]
[1732112378735,0.02371098,3147.0,3146.1,2.86064]
[1732112378955,3.17774,3146.9,3146.1,2.86062]
[1732112379237,3.17805,3146.6,3145.9,2.86085]
[1732112379432,1.2524,3146.3,3145.6,2.86113]
[1732112379644,4.45445098,3146.3,3145.5,5.86122]
[1732112379945,1.27611098,3146.3,3145.5,2.86122]
[1732112380237,3.17845,3146.2,3145.5,2.86122]
[1732112380538,1.2524,3146.7,3145.6,0.03178635]
[1732112380706,4.43039,3146.7,3146.0,2.86076]
[1732112381662,7.60841,3146.7,3145.9,2.86081]
[1732112381805,1.2524,3146.7,3145.7,0.03178156]
[1732112382006,1.2524,3146.7,3146.1,2.86066]
[1732112382206,1.2524,3146.7,3146.2,2.86054]
[1732112382507,1.2524,3146.7,3146.3,2.86048]
[1732112383442,1.2524,3146.7,3146.1,2.86064]
[1732112383600,1.2524,3146.7,3146.2,2.8605]
[1732112383802,1.2524,3146.7,3145.8,0.31503261]
[1732112384014,3.17818,3146.5,3145.9,2.86084]
[1732112384243,4.43042,3146.7,3146.1,2.86068]
[1732112384608,1.2524,3146.7,3145.7,2.86099]
[1732112384816,1.2524,3146.7,3146.4,2.86035]
[1732112385152,1.2524,3146.7,3145.8,0.03178268]
[1732112385153,1.2524,3146.7,3146.2,5.7211]
[1732112385352,1.2524,3146.7,3146.2,2.86054]
[1732112385539,4.4304,3146.7,3146.1,2.86066]
[1732112385739,1.2524,3146.7,3146.0,2.86069]
[1732112385906,4.43034,3146.7,3146.2,2.86052]
[1732112386102,1.2524,3146.7,3145.7,2.86104]
[1732112386352,4.45268,3147.2,3146.3,2.86042]
[1732112386643,3.17761,3147.1,3146.5,2.8603]
[1732112386861,4.45268,3147.2,3146.4,0.03177935]
[1732112386862,1.2752,3147.2,3146.4,0.03177935]
[1732112387157,1.2752,3147.2,3146.9,2.85988]
[1732112387445,1.2752,3147.2,3146.8,2.86003]
[1732112387850,4.45267,3147.2,3146.5,2.86028]
[1732112388046,0.02371098,3147.1,3146.6,2.86021]
[1732112388406,1.2752,3147.2,3146.5,2.86027]
[1732112388610,3.17775,3146.9,3146.3,2.86049]
[1732112388807,4.99413897,3147.2,3146.5,2.86031]
[1732112389034,1.2159,3147.8,3146.6,0.03177843]
[1732112389239,3.17704,3147.6,3147.0,2.85979]
[1732112389561,3.17724,3147.4,3146.8,2.85998]
[1732112389910,3.17753,3147.1,3146.5,2.86026]
[1732112390254,3.178,3146.7,3146.1,4.13922]
[1732112390435,3.178,3146.7,3146.1,2.86062]
[1732112390767,1.23961098,3147.0,3146.3,2.86041]
[1732112390768,3.1778,3146.9,3146.3,2.86041]
[1732112391112,1.2159,3147.0,3146.3,2.86041]
[1732112391354,3.1778,3146.9,3146.3,2.86048]
[1732112391657,1.7093839,3147.0,3146.4,2.86032]
[1732112391950,4.39355,3147.0,3146.4,2.86032]
[1732112392152,1.2159,3147.0,3146.6,2.86017]
[1732112392351,1.2159,3147.0,3146.1,0.03177937]
[1732112392516,1.2159,3147.0,3146.6,2.86021]
[1732112393154,1.2159,3147.0,3146.4,5.72073]
[1732112393374,1.2159,3147.0,3145.8,0.55]
[1732112393375,1.955244,3147.0,3146.0,2.8924679]
[1732112393649,3.17794,3146.7,3146.1,2.86062]
[1732112394015,3.17784,3146.8,3146.2,2.86054]
[1732112394218,3.17803,3146.7,3146.1,2.86062]
[1732112394523,3.17819,3146.5,3145.9,2.86082]
[1732112394712,3.17819,3146.5,3146.0,2.86077]
[1732112395113,3.1779,3146.8,3146.0,2.86077]
[1732112395353,3.17804,3146.6,3145.9,2.86082]
[1732112395554,3.17804,3146.6,3146.0,2.86077]
[1732112395855,3.17804,3146.6,3146.0,2.86076]
[1732112396080,3.17825,3146.4,3145.7,4.13961]
[1732112396228,3.17849,3146.2,3145.6,2.86106]
[1732112396456,3.1783,3146.4,3145.8,2.86089]
[1732112396666,3.17843,3146.2,3145.6,2.86107]
[1732112396875,3.17843,3146.2,3145.4,3.41126]
[1732112397082,3.17843,3146.2,3145.6,2.8611]
[1732112397382,3.17839,3146.3,3145.7,2.86104]
[1732112397545,3.17839,3146.3,3145.5,0.03178433]
[1732112397546,3.17845,3146.2,3145.5,0.03178433]
[1732112397879,0.02371098,3146.2,3145.4,2.86127]
[1732112398080,0.02371098,3146.4,3145.5,2.86122]
[1732112398389,3.1792,3145.5,3145.0,4.05487]
[1732112398600,3.17889,3145.8,3145.2,2.86145]
[1732112398887,3.17877,3145.9,3145.3,2.86133]
[1732112399385,3.17891,3145.8,3145.2,0.03179022]
[1732112399685,3.17897,3145.7,3145.2,0.03179022]
[1732112399855,1.2151,3146.1,3145.2,0.03179022]
[1732112399856,3.17884,3145.8,3145.2,0.03179022]
[1732112400085,3.17878,3145.9,3145.3,2.86133]
[1732112400261,6.3576,3145.9,3145.3,2.86133]
[1732112400476,3.17902,3145.7,3145.2,0.03179037]
[1732112400683,3.93609,3145.9,3145.3,2.86134]
[1732112400993,4.39366,3146.1,3145.5,2.86117]
[1732112401300,1.2151,3146.1,3145.3,0.03178686]
[1732112401589,1.2151,3146.1,3144.9,2.86173]
[1732112401590,3.17941,3145.3,3144.7,5.7238]
[1732112401794,3.17919,3145.5,3145.0,2.86163]
[1732112402088,3.17881,3145.9,3145.1,0.03178897]
[1732112402244,3.17826,3146.4,3145.6,2.86109]
[1732112402441,3.17853,3146.2,3145.6,3.265839]
[1732112402644,3.17828,3146.4,3145.6,2.86113]
[1732112402856,4.45371,3146.5,3145.7,0.03178507]
[1732112403085,3.17808,3146.6,3146.0,2.86076]
[1732112403282,3.17787,3146.8,3146.2,2.86053]
[1732112403484,1.1977,3146.9,3146.3,2.86043]
[1732112403644,1.1977,3146.9,3146.4,2.86036]
[1732112403861,1.2119,3147.3,3146.5,2.88656076]
[1732112404087,3.17755,3147.1,3146.6,2.86022]
[1732112404290,3.17704,3147.6,3147.0,2.8598]
[1732112404492,3.17704,3147.6,3146.8,2.86004]
[1732112404493,3.17732,3147.3,3146.8,2.86003]
[1732112404646,3.17712,3147.5,3146.8,2.86003]
[1732112404852,3.17708,3147.6,3147.0,2.85985]